Cogmind - Beta 13 X2 @@@ ROGUE MODE // 2023.12.29 @ 18:05:21 Player: Amy! Result: Destroyed by D-53 Grenadier with Mini Grenade Launcher Performance ------------- Evolutions (1) 500 Regions Visited (3) 600 Robots Destroyed (20) 100 Value Destroyed (487) 487 Prototype IDs (2) 40 Alien Tech Used (0) 0 Bonus (0) 0 TOTAL SCORE: 1727 Bonus ------- None Cogmind --------- Core Integrity 0/400 Matter 300/300 Energy 100/100 System Corruption 0% Temperature Cool (0) Movement Core (200) Ox3 Location -9/Mines Parts ------- > --- POWER (1) -------- (None) > --- PROPULSION (3) --- (None) > --- UTILITY (3) ------ Medium Storage Unit Sensor Array Signal Interpreter > --- WEAPON (2) ------- Small Laser > --- INVENTORY (10) --- Ion Engine Improved Ion Engine Light Armor Plating Light Armor Plating Beam Rifle Light Assault Rifle Heavy Assault Rifle Heavy Hammer Heavy Hammer Peak State ------------ > --- POWER ------------ Improved Ion Engine > --- PROPULSION ------- Aluminum Leg Aluminum Leg Aluminum Leg > --- UTILITY ---------- Heat Sink Medium Storage Unit Sensor Array > --- WEAPON ----------- Small Laser Beam Rifle > --- INVENTORY -------- Ion Engine Aluminum Leg Heat Sink Signal Interpreter Light Armor Plating Light Armor Plating Light Assault Rifle Heavy Assault Rifle Heavy Hammer Heavy Hammer [Rating: 12] Favorites ----------- Power Ion Engine Engine Ion Engine Propulsion Aluminum Leg Leg Aluminum Leg Utility Medium Storage Unit Device Heat Sink Storage Medium Storage Unit Processor Signal Interpreter Protection Light Armor Plating Weapon Small Laser Energy Gun Small Laser Ballistic Gun Assault Rifle Build | -11 -10 -9 -9 ------- Run | Yrd Mat Mat Min Slots Evolved 2 | . . 2 . Power . | . . . . Propulsion 1 | . . 1 . Utility 1 | . . 1 . Weapon . | . . . . Parts Attached 25 | 6 7 10 2 Power 3 | 1 . 1 1 Engine 3 | 1 . 1 1 Core . | . . . . Reactor . | . . . . Propulsion 7 | 2 2 3 . Treads . | . . . . Leg 7 | 2 2 3 . Wheel . | . . . . Hover . | . . . . Flight . | . . . . Utility 8 | 1 3 3 1 Device 4 | . 1 3 . Storage 2 | 1 1 . . Processor 1 | . . . 1 Hackware . | . . . . Protection 1 | . 1 . . Artifact . | . . . . Weapon 7 | 2 2 3 . Energy Gun 3 | . . 3 . Energy Cannon . | . . . . Ballistic Gun 4 | 2 2 . . Ballistic Cannon . | . . . . Launcher . | . . . . Special Weapon . | . . . . Impact Weapon . | . . . . Slashing Weapon . | . . . . Piercing Weapon . | . . . . Special Melee Weapon . | . . . . Unidentified Prototypes . | . . . . Parts Lost 7 | . . 3 4 Power 1 | . . . 1 Propulsion 4 | . . 1 3 Utility 2 | . . 2 . Weapon . | . . . . Highest Loss Streak 4 | . . 3 4 To Critical Strikes . | . . . . Average Slot Usage (%) 98 | . 98 98 96 Engine 12 | . 14 11 11 Leg 30 | . 28 32 30 Device 13 | . 7 21 11 Storage 12 | . 14 11 11 Protection 2 | . 5 . . Energy Gun 10 | . . 19 20 Ballistic Gun 14 | . 28 2 . Naked Turns . | . . . . Heaviest Build 23 | 13 20 23 22 Greatest Support 30 | 20 20 30 30 Greatest Overweight (x) 4 | 4 . . 1 Average Overweight (x) . | . . . . Largest Inventory Capacity 10 | 8 10 10 10 Average Capacity 9 | 7 9 10 10 Most Carried 10 | 4 10 10 9 Average Carried 8 | 2 8 9 7 Final Capacity 10 | 8 10 10 10 Final Carried 10 | 4 10 8 9 Class Distribution -------------------- 52% | Mutant 47% | Scavenger-Mutant Dominant Class ---------------- Mutant | -10/Materials Scavenger-Mutant | -9/Materials Scavenger-Mutant | -9/Mines Resources | -11 -10 -9 -9 ----------- Run | Yrd Mat Mat Min Matter Collected 625 | 237 266 102 20 Remotely . | . . . . Salvage Created 589 | . 278 311 . Parts 42 | . 20 22 . Haulers Intercepted . | . . . . Recyclers Shooed . | . . . . Parts Field Recycled . | . . . . Retrieved Matter . | . . . . Parts Self-Destructed . | . . . . Prevented . | . . . . Kills | -11 -10 -9 -9 ------- Run | Yrd Mat Mat Min Combat Hostiles Destroyed 18 | . 8 10 . Guns 18 | . 8 10 . Classes Destroyed 4 | . 3 1 . Watcher 2 | . 1 1 . Swarmer 9 | . 3 6 . Grunt 6 | . 5 1 . Sentry 3 | . . 3 . Best Kill Streak 4 | . 4 4 . Combat Bots Only 4 | . 4 4 . Max Kills in Single Turn 2 | . 2 1 . Gunslinging 1 | . 1 . . Exploded . | . . . . Melee . | . . . . Uniques/NPCs Destroyed . | . . . . Combat | -11 -10 -9 -9 -------- Run | Yrd Mat Mat Min Hostile Shots Fired 127 | . 52 66 9 Missed 33 | . 12 21 . Damage Taken 1557 | . 483 681 393 Core 507 | . 106 246 155 Absorbed by Shields . | . . . . Core Remaining (%) 78 | 100 57 . . Volleys Fired 65 | . 36 29 . Largest 2 | . 2 2 . Hottest 96 | . 40 96 . Shots Fired 129 | . 72 57 . Gun 129 | . 72 57 . Cannon . | . . . . Launcher . | . . . . Special . | . . . . Kinetic 72 | . 72 . . Thermal 57 | . . 57 . Explosive . | . . . . Electromagnetic . | . . . . Robot Hit Streak 13 | . 7 13 . Robot Miss Streak 3 | . 3 2 . Penetration Max . | . . . . Secondary Targets 3 | . 2 1 . Max Gunslinging Chain 1 | . 1 1 . Shots Hit Robots 92 | . 48 44 . Core Hits 32 | . 17 15 . Critical Kills . | . . . . Critical Parts Destroyed . | . . . . Critical Strikes . | . . . . Melee Attacks . | . . . . Impact . | . . . . Slashing . | . . . . Piercing . | . . . . Sneak Attacks . | . . . . Combat Hostiles . | . . . . Follow-up Attacks . | . . . . Damage Inflicted 1067 | . 550 517 . Guns 1067 | . 550 517 . Cannons . | . . . . Explosions . | . . . . Melee . | . . . . Ramming . | . . . . Kinetic 550 | . 550 . . Thermal 517 | . . 517 . Explosive . | . . . . Electromagnetic . | . . . . Impact . | . . . . Slashing . | . . . . Piercing . | . . . . Highest Corruption . | . . . . Average Corruption . | . . . . Corruption Purged . | . . . . Corruption Blocked . | . . . . Overload Shots . | . . . . Overflow Damage . | . . . . Projectiles . | . . . . Explosions . | . . . . Melee . | . . . . Knockbacks . | . . . . Impact . | . . . . Kinetic . | . . . . Secondary . | . . . . Self-Inflicted Damage . | . . . . Shots . | . . . . Rammed . | . . . . Targets Rammed . | . . . . Kicked . | . . . . Crushed . | . . . . Highest Temperature 68 | . 6 68 . Average Temperature 30 | . 4 31 . Received Heat Transfer 357 | . 258 99 . Siege Activations . | . . . . Robots Corrupted . | . . . . Combat Hostiles . | . . . . Parts Fried . | . . . . Impact Corruptions . | . . . . Robots Melted . | . . . . Combat Hostiles . | . . . . Parts Melted 6 | . . 6 . Heat Transferred 1208 | . . 1208 . Parts Sabotaged . | . . . . Parts Stolen . | . . . . Parts Stripped . | . . . . Power Chain Reactions . | . . . . Missiles Intercepted . | . . . . Alert | -11 -10 -9 -9 ------- Run | Yrd Mat Mat Min Peak Influence 216 | . 200 216 66 Initial 84 | . . 84 66 Average 94 | . 71 134 64 Maximum Alert Level 1 | . 1 1 . Low Security (%) 97 | 100 95 98 100 Level 1 2 | . 4 1 . Level 2 . | . . . . Level 3 . | . . . . Level 4 . | . . . . Level 5 . | . . . . High Security . | . . . . Max Security . | . . . . Squads Dispatched 5 | . 3 2 . Investigation . | . . . . Extermination . | . . . . Reinforcement 5 | . 3 2 . Assault . | . . . . Garrison . | . . . . Intercept . | . . . . Searches Triggered . | . . . . Construction Impeded . | . . . . Haulers Reinforced . | . . . . Active Scanning Responses . | . . . . Cargo Convoy Interrupts . | . . . . Stealth | -11 -10 -9 -9 --------- Run | Yrd Mat Mat Min Distress Signals 2 | . . 2 . Communications Jammed . | . . . . Distress Signals . | . . . . Times Spotted 31 | . 13 16 2 Peak Tracking Total 6 | . 3 6 2 Tactical Retreats . | . . . . Traps | -11 -10 -9 -9 ------- Run | Yrd Mat Mat Min Traps Triggered . | . . . . Indirectly . | . . . . Trap Hack Attempts . | . . . . Triggered . | . . . . Disarmed . | . . . . Reprogrammed . | . . . . Reused . | . . . . Traps Extracted . | . . . . Installed . | . . . . Triggered . | . . . . Machines | -11 -10 -9 -9 ---------- Run | Yrd Mat Mat Min Machines Disabled . | . . . . Max in Single Turn . | . . . . Machines Repaired . | . . . . Machines Dismantled . | . . . . Machines Sabotaged . | . . . . Overloaded Fab Kills . | . . . . Hacking | -11 -10 -9 -9 --------- Run | Yrd Mat Mat Min Machines Accessed 5 | . 3 2 . Terminals 5 | . 3 2 . Fabricators . | . . . . Repair Stations . | . . . . Recycling Units . | . . . . Scanalyzers . | . . . . Garrison Access . | . . . . Total Hacks 12 | . 6 6 . Successful 7 | . 4 3 . Failed 5 | . 2 3 . Catastrophic 3 | . 1 2 . Database Lockouts . | . . . . Manual 10 | . 5 5 . Terminals 12 | . 6 6 . Fabricators . | . . . . Repair Stations . | . . . . Recycling Units . | . . . . Scanalyzers . | . . . . Garrison Access . | . . . . Terminal Hacks 2 | . 1 1 . Prototype ID Bank 1 | . 1 . . Branch Access Points 1 | . . 1 . Fabricator Hacks . | . . . . Repair Station Hacks . | . . . . Recycling Unit Hacks . | . . . . Scanalyzer . | . . . . Garrison Access Hacks . | . . . . Unauthorized Hacks 5 | . 3 2 . Terminals 5 | . 3 2 . Botnet 5 | . 3 2 . Fabricators . | . . . . Repair Stations . | . . . . Recycling Units . | . . . . Scanalyzers . | . . . . Garrison Access . | . . . . Data Cores Recovered . | . . . . Used . | . . . . Hacking Detections 4 | . 2 2 . Full Trace Events . | . . . . Feedback Events . | . . . . Feedback Blocked . | . . . . Robot Schematics Acquired . | . . . . Robots Built . | . . . . Authchips . | . . . . Time . | . . . . Total Robot Build Rating . | . . . . Part Schematics Acquired . | . . . . Parts Built . | . . . . Authchips . | . . . . Time . | . . . . Total Part Build Rating . | . . . . Parts Repaired . | . . . . Time . | . . . . Parts Recycled . | . . . . Recycled Matter . | . . . . Retrieved Matter . | . . . . Retrieved Components . | . . . . Parts Scanalyzed . | . . . . Part Schematics Acquired . | . . . . Parts Damaged . | . . . . Bothacking | -11 -10 -9 -9 ------------ Run | Yrd Mat Mat Min Used RIF Installer . | . . . . Robots Hacked . | . . . . Non-combat . | . . . . Combat . | . . . . Robot Hacks Applied . | . . . . Relay Couplers Released . | . . . . Fabnet Peak Effective % . | . . . . Robots Rewired . | . . . . Allies Hacked . | . . . . Hacks Repelled . | . . . . Allies | -11 -10 -9 -9 -------- Run | Yrd Mat Mat Min Total Allies . | . . . . Largest Group . | . . . . Highest-Rated Group . | . . . . Highest-Rated Ally . | . . . . Total Orders . | . . . . Ally Attacks . | . . . . Total Damage . | . . . . Kills . | . . . . Allies Corrupted . | . . . . Allies Melted . | . . . . Intel | -11 -10 -9 -9 ------- Run | Yrd Mat Mat Min Robot Analysis Total . | . . . . Derelict Logs Recovered . | . . . . Drone Launches . | . . . . Drone Recoveries . | . . . . Exploration | -11 -10 -9 -9 ------------- Run | Yrd Mat Mat Min Turns Passed 1282 | 62 569 560 91 Spaces Moved 849 | 47 367 363 72 Core 16 | 16 . . . Treads . | . . . . Legs 833 | 31 367 363 72 Wheels . | . . . . Hover . | . . . . Flight . | . . . . Fastest Speed 50 | 50 120 120 120 Average Speed 119 | 106 120 120 122 Slowest Speed 250 | 250 120 120 190 Overloaded Moves . | . . . . Propulsion Burnouts . | . . . . Robots Hopped . | . . . . Cave-ins Triggered . | . . . . Exploration Rate (%) 26 | 4 53 29 18 Regions Visited 3 Branch Regions 1 Pre-discovered Areas . | . . . . Known Exits Taken 1 | . . 1 . Unknown Exits Taken 2 | 1 1 . . Scrap Searched 1 | . . . 1 Spaces Dug . | . . . . Terrain Destroyed . | . . . . Melee . | . . . . Projectile . | . . . . AOE . | . . . . Terrain Rammed . | . . . . Walls Destroyed . | . . . . Machines Disabled . | . . . . Actions | -11 -10 -9 -9 --------- Run | Yrd Mat Mat Min Total 993 | 56 429 433 75 Wait 22 | . . 22 . Move 846 | 46 366 362 72 Hop . | . . . . Pick Up 19 | 4 11 4 . Fast Attach 9 | 6 3 . . Attach 5 | . . 4 1 Detach 1 | . . . 1 Swap 11 | . 4 6 1 Drop 15 | . 9 6 . Fire 65 | . 36 29 . Melee . | . . . . Ram . | . . . . Kick . | . . . . Crush . | . . . . Escape Stasis . | . . . . Rewire . | . . . . Trap . | . . . . Miscellaneous . | . . . . Route ------- -11/Scrapyard -10/Materials -9/Materials (discovered 2 exits: *Min x2) -9/Mines History --------- Turn | Location | Event 9 | -11/Scrapyard | Discovered new exit (range 15) 63 | -11/Scrapyard | Entered Materials 300 | -10/Materials | Build established: Mutant 593 | -10/Materials | Discovered new exit (range 11) 632 | -10/Materials | Entered another Materials area 632 | -9/Materials | Evolved 2 slots: Propulsion x1, Utility x1 928 | -9/Materials | Identified exit to Mines 1060 | -9/Materials | Build established: Scavenger-Mutant 1152 | -9/Materials | Core integrity fell below 50% 1182 | -9/Materials | Lost 3 parts (1n2u) 1192 | -9/Materials | Entered Mines 1240 | -9/Mines | Assembled infested the area 1282 | -9/Mines | Core integrity fell below 20% 1283 | -9/Mines | Destroyed by D-53 Grenadier with Mini Grenade Launcher Last Messages --------------- 01221_ Searching scrap... 01221_ Found 27 Matter. 01221_ Found Imp. Ion Engine. 01221_ Found EM Shotgun. 01221_ Found 20 Matter. 01222_ Acquired 10 matter. 01240_ ALERT: Infestation in the mines, dispatching Demolisher response squad. 01274_ K-01 Serf collects debris. 01276_ C-30 ARC bursts open, deploying its payload. 01276_ D-53 Grenadier unfolds itself. 01276_ Aluminum Leg destroyed. 01276_ K-01 Serf destroyed. 01277_ The unstable cave ceiling collapses. 01279_ Aluminum Leg destroyed. 01279_ K-01 Serf collects debris. 01283_ The unstable cave ceiling collapses. 01283_ Imp. Ion Engine destroyed. 01283_ Aluminum Leg destroyed. 01283_ T-07 Excavator destroyed. Map ----- +----------------------------------------------------+ | ?????????????????????????????????????????? | | ?????????????????????????????????????????? | | ?????????????????????????????????????????? | | ?????????????????????????????????????????? | | ?????????????????????????????????????????? | | ?????????????????????????????????????????? | | ?????????????????????????????????????????? | | ?????????????????????????????????????????? | | ?????????????????????????????????????????? | | ?????????????????????????????????????????? | | ?????????????????????????????????????????? | | ?????????????????????????????????????????? | | ?????????????????????????????????????????? | | ?????????????????????????????????????????? | | ?????????????????????????????????????????? | | ??????????????????????????##?????????????? | | ?????????????????????????? ##????????????? | | ?????????????????????????? #????????????? | | ?????????????????????????? #???###??????? | | ????????????????####?????? #??? ##?????? | | ??????????? ???## ??###? #?? ###???? | | ??????????? ## ## # #?# ##??? | | ???????????# # !%## #??? | | ?????????????? = ] #??? | | ??????????????????# #??? | | ???????????????????# @ #?? | | ???????????????????# #? | | ???????????????????# k #? | | ????????? ## ## #?? | | ????????? d%d ####???? #?? | | ????????? #### #???????????? | | ?????????? ??????# ##???????????? | | ????????????????????## #???????????? | | ?????????????????????# #???????????? | | ?????????????????????# """ #???????????? | | ?????????????????????# """ #???????????? | | ?????????????????????# """ #???????????? | | ?????????????????????# #???????????? | | ?????????????????????# #???????????? | | ?????????????????????# #???????????? | | ?????????????????????#### ####???????????? | | ????????????????????????# #??????????????? | | ????????????????????????# ######?????????? | | ????????????????????????# #??#####??? | | ????????????????????????###### #### ##?? | | ?????????????????????????????# % #?? | | ?????????????????????????????# [ #?? | | ?????????????????????????????#### #?? | | ??????????????????###########?## #?? | | ??????????????????? ### ##?? | +----------------------------------------------------+ Best States ------------- Heat Dissipation 38 Energy Generation 12 Energy Capacity 265 Matter Stores 300 Matter Capacity 300 Sight Range 16 Robot Scan Range 14 Terrain Scan Density 10 Armor Coverage 150 Evasion (%) 55 Item Schematics ----------------- None Robot Schematics ------------------ None Fabricated ------------ Nothing Alien Tech Used ----------------- None Achievements -------------- None Challenges ------------ None Game ------ Seed ThrusterDecoderMatrix Manual? 0 Play Time 00:27:38 Cumulative 116.3 hours Start 2023.12.29 @ 17:39:16 End 2023.12.29 @ 18:05:21 Sessions 1 Manual Loads 0 Difficulty Rogue Special Mode None Game No. 79 Rogue 79 Adventurer 0 Explorer 0 Win Type - Total 2 Types 2/0/0/0/0/0/0/0/0 Lore% 52 Gallery% 57 Achievement% 56 Wizard Run 0 Options --------- ASCII 1 Keyboard 1 Movement Vi Keybinds 0 Fullscreen 1 Font 36/Smallcaps Map View 76x50 Zoom Use 1% Tactical HUD 1 Map Filters NONE Filters NONE Steam 1 RUN: 99b82437-374b-454b-ad7d-8ac28bfcd183